{"text_format":"1","workbook":"xlsx","n_sheets":3,"sheets":["Hoja1","Hoja2","Hoja3"],"not_rendered":{"charts":0,"images":0,"macros":1,"external_links":0,"defined_names":0,"comments":1,"pivot_tables":0},"unopened":[],"bounds":{"document_bytes":16777216,"sheet_cells":100000,"rows_first":2000,"rows_last":500,"rows_between":2000,"halvings":0,"cell_chars":16384,"cell_head_chars":4096},"cells_cut":0,"cells_raw":0,"read":"whole","date_system":"1900"}

{"sheet":"Hoja1","index":0,"n_rows":630,"n_cols":20,"rows_kept":630,"cut":false,"hidden":false,"merged":[]}
["Código de la plaza",null,null,null,null,null,null,null,null,null,null,null,null,null,null,null,null,"PERTINENCIAS",null,"C.D.U."]
["Área de conocimiento",null,null,null,null,null,null,null,null,null,null,null,null,null,null,null,null,1,null,"SÍ"]
["Departamento",null,null,null,null,null,null,null,null,null,null,null,null,null,null,null,null,{"$f":"1/2","v":0.5},null,"NO"]
["Nombre y Apellidos",null,null,null,null,null,null,null,null,null,null,null,null,null,null,null,null,{"$f":"1/4","v":0.25}]
[null,"RESUMEN BAREMACIÓN",null,null,null,null,null,null,null,null,null,null,null,null,null,null,null,{"$f":"1/10","v":0.1}]
[null,"Formación Académica (35 ptos)=",{"$f":"+J160","v":0},{"$f":"IF(C6=INDEX(J:J,MATCH(\"1.00\",H:H,0)),\"\",\"ERROR\")","v":""},null,null,null,null,null,null,null,null,null,null,null,null,null,0]
[null,"Experiencia Docente (15 ptos)=",{"$f":"+J252","v":0},{"$f":"IF(C7=INDEX(J:J,MATCH(\"2.00\",H:H,0)),\"\",\"ERROR\")","v":""}]
[null,"Experiencia investigadora (40 ptos)=",{"$f":"+J525","v":0},{"$f":"IF(C8=INDEX(J:J,MATCH(\"3.00\",H:H,0)),\"\",\"ERROR\")","v":""}]
[null,"Experiencia Profesional (5 ptos)=",{"$f":"+J577","v":0},{"$f":"IF(C9=INDEX(J:J,MATCH(\"4.00\",H:H,0)),\"\",\"ERROR\")","v":""}]
[null,"Otros méritos (5 ptos)=",{"$f":"+J630","v":0},{"$f":"IF(C10=INDEX(J:J,MATCH(\"5.00\",H:H,0)),\"\",\"ERROR\")","v":""}]
[]
["Documento","Documentación de carácter general y específico"]
[null,"Documento nacional de identidad  o equivalente (anverso y reverso)"]
[null,"Título académico universitario (anverso y reverso). "]
[null,"Título de Doctor (anverso y reverso). "]
[null,"Acreditación  para la figura de Profesor Ayudante Doctor "]
[null,"Currículum vitae según modelo del Anexo IV"]
[null,"A Criterios generales"]
[null,"Acreditación a cuerpos docentes universitarios (mérito preferente)","NO"]
[]
[null,null,null,null,null,null,null,"BD","Puntos","Total"]
["I Formación académica (35 puntos)"]
["1.1 Expediente académico"]
["Documento","Mérito","Cantidad","Pertinencia","Ptos/und","Comentarios","Puntos"]
[null,null,"(nº)"]
[null,"Calificación media tomada del expediente",1,0,1,null,{"$f":"+C26*E26*D26","v":0}]
[null,"Primas por asignaturas"]
[null,"Sobresalientes",null,0,0.02,null,{"$f":"+C28*E28*D28","v":0}]
[null,"Matrícula de Honor",null,0,0.05,null,{"$f":"+C29*E29*D29","v":0}]
[null,"Primas por Proyecto Fin de Carrera"]
[null,"Sobresalientes",null,0,0.02,null,{"$f":"+C31*E31*D31","v":0}]
[null,"Matrícula de Honor",null,0,0.05,null,{"$f":"+C32*E32*D32","v":0}]
[null,"Incidencias"]
[]
[]
[null,null,null,null,null,null,"Puntuación del apartado (Nota media primada x 5)","1.01",{"$f":"+SUM(G24:G35)*5","v":0}]
[]
["1.2 Premio extraordinario de Licenciatura"]
["Documento","Mérito","Cantidad","Pertinencia","Ptos/und","Comentarios","Puntos"]
[null,null,"(nº)"]
[null,"Prémio Licenciatura (5 ptos)",null,0,5,null,{"$f":"+C41*E41*D41","v":0}]
[null,"Incidencias"]
[]
[]
[null,null,null,null,null,null,"Puntuación del apartado","1.02",{"$f":"+SUM(G39:G44)","v":0}]
[]
["1.3 Tesina de Licenciatura o Grado de Licenciatura"]
["Documento","Mérito","Cantidad","Pertinencia","Ptos/und","Comentarios","Puntos"]
[null,null,"(nº)"]
[null,"Tesina con máxima calificación (5 ptos)",null,0,5,null,{"$f":"+C50*E50*D50","v":0}]
[null,"Incidencias"]
[]
[]
[null,null,null,null,null,null,"Puntuación del apartado","1.03",{"$f":"+SUM(G48:G53)","v":0}]
[]
["1.4 Grado de Doctor"]
["Documento","Mérito","Cantidad","Pertinencia","Ptos/und","Comentarios","Puntos"]
[null,null,"(nº)"]
[null,"Cum laude (10 ptos)",null,0,10,null,{"$f":"+C59*E59*D59","v":0}]
[null,"Sobresaliente (9 ptos)",null,0,9,null,{"$f":"+C60*E60*D60","v":0}]
[null,"Notable (8 ptos)",null,0,8,null,{"$f":"+C61*E61*D61","v":0}]
[null,"Apto o aprobado (7 ptos)",null,0,7,null,{"$f":"+C62*E62*D62","v":0}]
[null,"Incidencias"]
[]
[]
[null,null,null,null,null,null,"Puntuación del apartado",1.04,{"$f":"+SUM(G57:G65)","v":0}]
[]
["1.5 Premio extraordinario de doctorado"]
["Documento","Mérito","Cantidad","Pertinencia","Ptos/und","Comentarios","Puntos"]
[null,null,"(nº)"]
[null,"Prémio Doctorado (3 ptos)",null,0,3,null,{"$f":"+C71*E71*D71","v":0}]
[null,"Incidencias"]
[]
[]
[null,null,null,null,null,null,"Puntuación del apartado","1.05",{"$f":"+SUM(G69:G74)","v":0}]
[]
["1.6 Doctorado europeo"]
["Documento","Mérito","Cantidad","Pertinencia","Ptos/und","Comentarios","Puntos"]
[null,null,"(nº)"]
[null,"Doctorado Europeo (5 ptos)",null,0,5,null,{"$f":"+C80*E80*D80","v":0}]
[null,"Incidencias"]
[]
[]
[null,null,null,null,null,null,"Puntuación del apartado",1.06,{"$f":"+SUM(G78:G83)","v":0}]
[]
["1.7 Otras titulaciones oficiales universitarias diferentes de las requeridas en la convocatoria"]
["Documento","Mérito","Cantidad","Pertinencia","Ptos/und","Comentarios","Puntos"]
[null,null,"(nº)"]
[null,"Primer ciclo (2ptos)"]
[null,null,null,0,2,null,{"$f":"+C90*E90*D90","v":0}]
[null,null,null,0,2,null,{"$f":"+C91*E91*D91","v":0}]
[null,"Segundo ciclo a partir de primer ciclo (3 ptos)"]
[null,null,null,0,3,null,{"$f":"+C93*E93*D93","v":0}]
[null,null,null,0,3,null,0]
[null,"Segundo ciclo (5ptos) o segundo título de Doctor"]
[null,null,null,0,5,null,{"$f":"+C96*E96*D96","v":0}]
[null,null,null,0,5,null,0]
[null,"Incidencias"]
[]
[]
[null,null,null,null,null,null,"Puntuación del apartado","1.07",{"$f":"SUM(G87:G100)","v":0}]
[]
["1.8 Otras titulaciones propias universitarias (Master, experto o …)"]
["Documento","Mérito","Cantidad","Pertinencia","Ptos/und","Comentarios","Puntos"]
[null,null,"(horas)"]
[null,null,null,0,{"$f":"2/320","v":6.2500000000000003E-3},null,{"$f":"+D106*E106*C106","v":0}]
[null,null,null,0,{"$f":"2/320","v":6.2500000000000003E-3},null,{"$f":"+C107*E107*D107","v":0}]
[null,"Incidencias"]
[]
[]
[null,null,null,null,null,null,"Puntuación del apartado",1.08,{"$f":"SUM(G104:G110)","v":0}]
[]
["1.9 Cursos, seminarios y talleres universitarios o impartidos por organismos de reconocido prestigio"]
["Documento","Mérito","Cantidad","Pertinencia","Ptos/und","Comentarios","Puntos"]
[null,null,"(horas)"]
[null,null,null,0,{"$f":"0.02/10","v":2E-3},null,{"$f":"+C116*E116*D116","v":0}]
[null,null,null,0,{"$f":"0.02/10","v":2E-3},null,0]
[null,null,null,0,2E-3,null,0]
[null,null,null,0,2E-3,null,0]
[null,"Incidencias"]
[]
[]
[null,null,null,null,null,null,"Puntuación del apartado","1.09",{"$f":"+SUM(G114:G122)","v":0}]
[]
["1.10 Estancias formativas en otros centros"]
["Documento","Mérito","Cantidad","Pertinencia","Ptos/und","Comentarios","Puntos"]
[null,null,"(semanas)"]
[null,"De pregrado (>4semanas)"]
[null,null,null,0,{"$f":"0.15/4","v":3.7499999999999999E-2},null,{"$f":"+C129*E129*D129","v":0}]
[null,null,null,0,{"$f":"0.15/4","v":3.7499999999999999E-2},null,{"$f":"+C130*E130*D130","v":0}]
[null,"De posgrado (>4semanas)"]
[null,null,null,0,{"$f":"0.3/4","v":7.4999999999999997E-2},null,{"$f":"+C132*E132*D132","v":0}]
[null,null,null,0,{"$f":"0.3/4","v":7.4999999999999997E-2},null,0]
[null,"Incidencias"]
[]
[]
[null,null,null,null,null,null,"Puntuación del apartado","1.10",{"$f":"+SUM(G126:G136)","v":0}]
[]
["1.11 Becas de pregrado competitivas"]
["Documento","Mérito","Cantidad","Pertinencia","Ptos/und","Comentarios","Puntos"]
[null,null,"(años)"]
[null,null,null,0,0.5,null,{"$f":"+C142*E142*D142","v":0}]
[null,null,null,0,0.5,null,0]
[null,"Incidencias"]
[]
[]
[null,null,null,null,null,null,"Puntuación del apartado","1.11",{"$f":"+SUM(G140:G146)","v":0}]
[]
["1.12 Otros méritos relevantes (máximo 1 punto)"]
["Documento","Mérito","Cantidad","Pertinencia","Ptos/und","Comentarios","Puntos"]
[null,"Los puntos especificados en este apartado no son reales, los ha de especificar la Comisión Asesora","(nº)"]
[null,null,null,0,9.9999999999999995E-7,null,{"$f":"+C152*E152*D152","v":0}]
[null,null,null,0,9.9999999999999995E-7,null,0]
[null,null,null,0,9.9999999999999995E-7,null,0]
[null,null,null,0,9.9999999999999995E-7,null,0]
[null,"Incidencias"]
[]
[]
[null,null,null,null,null,null,"Puntuación del apartado","1.12",{"$f":"IF(SUM(G150:G158)>1,1,SUM(G150:G158))","v":0}]
["I Formación académica (35 puntos)",null,null,null,null,null,null,"1.00",null,{"$f":"+SUM(I21:I159)","v":0}]
[]
["II Experiencia docente y formación para la docencia (15 puntos)"]
["2.1 Docencia universitaria en nivel de grado en materias regladas"]
["Documento","Mérito","Cantidad","Pertinencia","Ptos/und","Comentarios","Puntos"]
[null,null,"(horas)"]
[null,null,null,0,{"$f":"2/240","v":8.3333333333333332E-3},null,{"$f":"+C166*E166*D166","v":0}]
[null,null,null,0,{"$f":"2/240","v":8.3333333333333332E-3},null,0]
[null,null,null,0,{"$f":"2/240","v":8.3333333333333332E-3},null,0]
[null,null,null,0,8.3333333333333332E-3,null,0]
[null,"Incidencias"]
[]
[]
[null,null,null,null,null,null,"Puntuación del apartado","2.01",{"$f":"+SUM(G164:G172)","v":0}]
[]
["2.2 Docencia universitaria de posgrado"]
["Documento","Mérito","Cantidad","Pertinencia","Ptos/und","Comentarios","Puntos"]
[null,null,"(horas)"]
[null,null,null,0,{"$f":"0.1/10","v":0.01},null,{"$f":"+C178*E178*D178","v":0}]
[null,null,null,0,{"$f":"0.1/10","v":0.01},null,0]
[null,null,null,0,0.01,null,0]
[null,null,null,0,0.01,null,0]
[null,"Incidencias"]
[]
[]
[null,null,null,null,null,null,"Puntuación del apartado","2.02",{"$f":"+SUM(G176:G184)","v":0}]
[]
["2.3 Otra docencia universitaria"]
["Documento","Mérito","Cantidad","Pertinencia","Ptos/und","Comentarios","Puntos"]
[null,null,"(horas)"]
[null,null,null,0,{"$f":"0.05/10","v":5.0000000000000001E-3},null,{"$f":"+C190*E190*D190","v":0}]
[null,null,null,0,{"$f":"0.05/10","v":5.0000000000000001E-3},null,0]
[null,null,null,0,5.0000000000000001E-3,null,0]
[null,null,null,0,5.0000000000000001E-3,null,0]
[null,"Incidencias"]
[]
[]
[null,null,null,null,null,null,"Puntuación del apartado","2.03",{"$f":"+SUM(G188:G196)","v":0}]
[]
["2.4 Material docente universitario: libros de texto, repertorios, recopilaciones, casos prácticos, etc."]
["Documento","Mérito","Cantidad","Pertinencia","Ptos/und","Comentarios","Puntos"]
[null,"Los puntos especificados en este apartado no son reales, los ha de especificar la Comisión Asesora","(nº)",null,"(0 - 4)"]
[null,null,null,0,4,null,{"$f":"+C202*E202*D202","v":0}]
[null,null,null,0,4,null,0]
[null,"Incidencias"]
[]
[]
[null,null,null,null,null,null,"Puntuación del apartado","2.04",{"$f":"+SUM(G200:G206)","v":0}]
[]
["2.5 Docencia oficial de ámbito no universitario"]
["Documento","Mérito","Cantidad","Pertinencia","Ptos/und","Comentarios","Puntos"]
[null,null,"(cursos)"]
[null,"Enseñanza primaria"]
[null,null,null,0,0.25,null,{"$f":"+C213*E213*D213","v":0}]
[null,null,null,0,0.25,null,{"$f":"+C214*E214*D214","v":0}]
[null,"Enseñanza secundaria y FP"]
[null,null,null,0,0.5,null,{"$f":"+C216*E216*D216","v":0}]
[null,null,null,0,0.5,null,0]
[null,"Incidencias"]
[]
[]
[null,null,null,null,null,null,"Puntuación del apartado","2.05",{"$f":"+SUM(G210:G220)","v":0}]
[]
["2.6 Formación didáctica para la actividad docente"]
["Documento","Mérito","Cantidad","Pertinencia","Ptos/und","Comentarios","Puntos"]
[]
[null,"Curso de adaptación pedagógica","(nº)"]
[null,null,null,0,0.9,null,{"$f":"+C227*E227*D227","v":0}]
[null,"Proyectos de Innovación Educativa  (IP 0.5 ptos, IT 0.25 ptos, IC 0.1 ptos)","(años)"]
[null,null,null,0,0.5,null,{"$f":"+C229*E229*D229","v":0}]
[null,null,null,0,0.25,null,0]
[null,null,null,0,0.1,null,0]
[null,"Otros","(horas)"]
[null,null,null,0,5.0000000000000001E-3,null,{"$f":"+C233*E233*D233","v":0}]
[null,null,null,0,5.0000000000000001E-3,null,0]
[null,"Incidencias"]
[]
[]
[null,null,null,null,null,null,"Puntuación del apartado","2.06",{"$f":"+SUM(G224:G237)","v":0}]
[]
["2.7 Otros méritos relevantes (máximo 1 punto)"]
["Documento","Mérito","Cantidad","Pertinencia","Ptos/und","Comentarios","Puntos"]
[null,"Los puntos especificados en este apartado no son reales, los ha de especificar la Comisión Asesora","(nº)"]
[null,null,null,0,9.9999999999999995E-7,null,{"$f":"+C243*E243*D243","v":0}]
[null,null,null,0,9.9999999999999995E-7,null,0]
[null,null,null,0,9.9999999999999995E-7,null,0]
[null,null,null,0,9.9999999999999995E-7,null,0]
[null,null,null,0,9.9999999999999995E-7,null,0]
[null,"Incidencias"]
[]
[]
[null,null,null,null,null,null,"Puntuación del apartado","2.07",{"$f":"IF(SUM(G241:G250)>1,1,SUM(G241:G250))","v":0}]
["II Experiencia docente y formación para la docencia (15 puntos)",null,null,null,null,null,null,"2.00",null,{"$f":"+SUM(I161:I251)","v":0}]
[]
["III Experiencia investigadora (40 puntos)"]
["3.1 Libros "]
["Documento","Mérito","Cantidad","Pertinencia","Ptos/und","Comentarios","Puntos"]
[null,"Los puntos especificados en este apartado no son reales, los ha de especificar la Comisión Asesora","(nº)",null,"(0.5 - 4)"]
[null,"a) Autor (de 1 a 4 ptos)"]
[null,null,null,0,4,null,{"$f":"+C259*E259*D259","v":0}]
[null,null,null,0,1,null,{"$f":"+C260*E260*D260","v":0}]
[null,"b) Director, editor o coordinador (de 0.5 a 1.5 ptos)"]
[null,null,null,0,1.5,null,{"$f":"+C262*E262*D262","v":0}]
[null,null,null,0,0.5,null,0]
[null,"Incidencias"]
[]
[]
[null,null,null,null,null,null,"Puntuación del apartado","3.01",{"$f":"+SUM(G256:G266)","v":0}]
[]
["3.2 Capítulos de libros"]
["Documento","Mérito","Cantidad","Pertinencia","Ptos/und","Comentarios","Puntos"]
[null,"Los puntos especificados en este apartado no son reales, los ha de especificar la Comisión Asesora","(nº)",null,"(0.5 - 2)"]
[null,"Internacional (? ptos, criterio interno)"]
[null,null,null,0,2,null,{"$f":"+C273*E273*D273","v":0}]
[null,null,null,0,2,null,{"$f":"+C274*E274*D274","v":0}]
[null,"Nacional (? ptos, criterio interno)"]
[null,null,null,0,1,null,{"$f":"+C276*E276*D276","v":0}]
[null,null,null,0,1,null,0]
[null,"Autonómico, Universidad, etc. (? ptos, criterio interno)"]
[null,null,null,0,0.5,null,{"$f":"+C279*E279*D279","v":0}]
[null,null,null,0,0.5,null,0]
[null,"Incidencias"]
[]
[]
[null,null,null,null,null,null,"Puntuación del apartado","3.02",{"$f":"+SUM(G270:G283)","v":0}]
[]
["3.3 Artículos publicados en revistas citadas en el ISI, JCR"]
["Documento","Mérito","Cantidad","Pertinencia","Ptos/und","Comentarios","Puntos"]
[null,"Los puntos especificados en este apartado no son reales, los ha de especificar la Comisión Asesora","(nº)",null,"(2 - 4)"]
[null,"Primer cuartil (? ptos, criterio interno)"]
[null,null,null,0,4,null,{"$f":"+C290*E290*D290","v":0}]
[null,null,null,0,4,null,{"$f":"+C291*E291*D291","v":0}]
[null,"Segundo cuartil (? ptos, criterio interno)"]
[null,null,null,0,3,null,{"$f":"+C293*E293*D293","v":0}]
[null,null,null,0,3,null,0]
[null,"Tercer/ cuarto cuartil (? ptos, criterio interno)"]
[null,null,null,0,2,null,{"$f":"+C296*E296*D296","v":0}]
[null,null,null,0,2,null,0]
[null,"Incidencias"]
[]
[]
[null,null,null,null,null,null,"Puntuación del apartado","3.03",{"$f":"+SUM(G287:G300)","v":0}]
[]
["3.4 Artículos en revistas de reconocida relevancia en el area"]
["Documento","Mérito","Cantidad","Pertinencia","Ptos/und","Comentarios","Puntos"]
[null,"Los puntos especificados en este apartado no son reales, los ha de especificar la Comisión Asesora","(nº)",null,"(0.5 - 2)"]
[null,"En el área (? ptos, criterio interno)"]
[null,null,null,0,2,null,{"$f":"+C307*E307*D307","v":0}]
[null,null,null,0,2,null,{"$f":"+C308*E308*D308","v":0}]
[null,"Resto de áreas (? ptos, criterio interno)"]
[null,null,null,0,1,null,{"$f":"+C310*E310*D310","v":0}]
[null,null,null,0,1,null,0]
[null,"Incidencias"]
[]
[]
[null,null,null,null,null,null,"Puntuación del apartado","3.04",{"$f":"+SUM(G304:G314)","v":0}]
[]
["3.5. Publicaciones en Actas de Congresos"]
["Documento","Mérito","Cantidad","Pertinencia","Ptos/und","Comentarios","Puntos"]
[null,null,"(nº)",null,"(0 - 1)"]
[null,"Internacional (hasta 1 pto)"]
[null,null,null,0,1,null,{"$f":"+C321*E321*D321","v":0}]
[null,null,null,0,1,null,{"$f":"+C322*E322*D322","v":0}]
[null,"Nacional (hasta 0.5 ptos)"]
[null,null,null,0,0.5,null,{"$f":"+C324*E324*D324","v":0}]
[null,null,null,0,0.5,null,0]
[null,"Incidencias"]
[]
[]
[null,null,null,null,null,null,"Puntuación del apartado","3.05",{"$f":"+SUM(G318:G328)","v":0}]
[]
["3.6. Prólogos e introducciones."]
["Documento","Mérito","Cantidad","Pertinencia","Ptos/und","Comentarios","Puntos"]
[null,null,"(nº)",null,"(0.5 - 1)"]
[null,null,null,0,0.5,null,{"$f":"+C334*E334*D334","v":0}]
[null,null,null,0,1,null,0]
[null,"Incidencias"]
[]
[]
[null,null,null,null,null,null,"Puntuación del apartado","3.06",{"$f":"+SUM(G332:G338)","v":0}]
[]
["3.7. Anotaciones a textos de reconocido valor científico."]
["Documento","Mérito","Cantidad","Pertinencia","Ptos/und","Comentarios","Puntos"]
[null,null,"(nº)",null,"(0.1 - 0.25)"]
[null,null,null,0,0.25,null,{"$f":"+C344*E344*D344","v":0}]
[null,null,null,0,0.1,null,0]
[null,"Incidencias"]
[]
[]
[null,null,null,null,null,null,"Puntuación del apartado","3.07",{"$f":"+SUM(G342:G348)","v":0}]
[]
["3.8. Patentes, modelos de utilidad y otros resultados de la investigación, en especial los que produzcan transferencia tecnológica al sector productivo"]
["Documento","Mérito","Cantidad","Pertinencia","Ptos/und","Comentarios","Puntos"]
[null,"Los puntos especificados en este apartado no son reales, los ha de especificar la Comisión Asesora","(nº)",null,"(0.5 - 3)"]
[null,"Internacional y explotada (? ptos, criterio interno)"]
[null,null,null,0,3,null,{"$f":"+C355*E355*D355","v":0}]
[null,null,null,0,3,null,{"$f":"+C356*E356*D356","v":0}]
[null,"Nacional y explotada (? ptos, criterio interno)"]
[null,null,null,0,2,null,{"$f":"+C358*E358*D358","v":0}]
[null,null,null,0,2,null,0]
[null,"Internacional y no explotada (? pto, criterio interno)"]
[null,null,null,0,1,null,{"$f":"+C361*E361*D361","v":0}]
[null,null,null,0,1,null,0]
[null,"Nacional y no explotada (? ptos, criterio interno)"]
[null,null,null,0,0.5,null,{"$f":"+C364*E364*D364","v":0}]
[null,null,null,0,0.5,null,0]
[null,"Incidencias"]
[]
[]
[null,null,null,null,null,null,"Puntuación del apartado","3.08",{"$f":"+SUM(G352:G368)","v":0}]
[]
["3.9. Proyectos y contratos de investigación"]
["Documento","Mérito","Cantidad","Pertinencia","Ptos/und","Comentarios","Puntos"]
[null,null,"(años)",null,"(0.1 - 2)"]
[null,"a) Convocatoria pública y competitiva (IP 2 ptos, IT 1.5 ptos, IC 0.3 ptos)"]
[null,null,null,0,2,null,{"$f":"+C375*E375*D375","v":0}]
[null,null,null,0,1.5,null,{"$f":"+C376*E376*D376","v":0}]
[null,null,null,0,0.3,null,{"$f":"+C377*E377*D377","v":0}]
[null,"b) Contratos de especial relevancia en empresa o organismos públicos (IP 1 ptos, IT 0.5 ptos, IC 0.15 ptos)"]
[null,null,null,0,1,null,{"$f":"+C379*E379*D379","v":0}]
[null,null,null,0,0.5,null,{"$f":"+C380*E380*D380","v":0}]
[null,null,null,0,0.15,null,{"$f":"+C381*E381*D381","v":0}]
[null,"c) Otros proyectos y contratos de investigación (IP 0.5 ptos, IT 0.25 ptos, IC 0.1 ptos)"]
[null,null,null,0,0.5,null,{"$f":"+C383*E383*D383","v":0}]
[null,null,null,0,0.25,null,{"$f":"+C384*E384*D384","v":0}]
[null,null,null,0,0.1,null,{"$f":"+C385*E385*D385","v":0}]
[null,"Incidencias"]
[]
[]
[null,null,null,null,null,null,"Puntuación del apartado","3.09",{"$f":"+SUM(G372:G388)","v":0}]
[]
["3.10. Estancias de investigación "]
["Documento","Mérito","Cantidad","Pertinencia","Ptos/und","Comentarios","Puntos"]
[null,null,"(semanas)"]
[null,"Posdoctorales (3 ptos/18 semanas)"]
[null,null,null,0,{"$f":"3/18","v":0.16666666666666666},null,{"$f":"+C395*E395*D395","v":0}]
[null,null,null,0,{"$f":"3/18","v":0.16666666666666666},null,{"$f":"+C396*E396*D396","v":0}]
[null,"Predoctorales (1.5 ptos/18 semanas)"]
[null,null,null,0,{"$f":"1.5/18","v":8.3333333333333329E-2},null,{"$f":"+C398*E398*D398","v":0}]
[null,null,null,0,8.3333333333333329E-2,null,0]
[null,"Mérito preferente de estancia"]
[null,"Estancia en organismos de prestigio distintos de la UMA","NO"]
[null,"Incidencias"]
[]
[]
[null,null,null,null,null,null,"Puntuación del apartado","3.10",{"$f":"+SUM(G392:G404)*(1+0.5*(C401=\"SÍ\"))","v":0}]
[]
["3.11. Ponencias y comunicaciones a congresos y conferencias no publicadas"]
["Documento","Mérito","Cantidad","Pertinencia","Ptos/und","Comentarios","Puntos"]
[null,"Los puntos especificados en este apartado no son reales, los ha de especificar la Comisión Asesora","(nº)"]
[null,"Internacional (ponencia hasta 1 pto, comunicación hasta 0.5 ptos)"]
[null,null,null,0,1,null,{"$f":"+C411*E411*D411","v":0}]
[null,null,null,0,0.5,null,{"$f":"+C412*E412*D412","v":0}]
[null,"Nacional (ponencia hasta 0.5 ptos, comunicación hasta 0.25 ptos)"]
[null,null,null,0,0.5,null,{"$f":"+C414*E414*D414","v":0}]
[null,null,null,0,0.25,null,0]
[null,"Incidencias"]
[]
[]
[null,null,null,null,null,null,"Puntuación del apartado","3.11",{"$f":"+SUM(G408:G418)","v":0}]
[]
["3.12. Dirección de tesis doctorales"]
["Documento","Mérito","Cantidad","Pertinencia","Ptos/und","Comentarios","Puntos"]
[null,null,"(nº)"]
[null,"Con la máxima calificación (3 ptos)"]
[null,null,null,0,3,null,{"$f":"+C425*E425*D425","v":0}]
[null,null,null,0,3,null,{"$f":"+C426*E426*D426","v":0}]
[null,"Sin la máxima calificación (proporcional a 3 ptos) (la puntuación la decidirá la Comisión Asesora)",null,null,"(0 - 1.5)"]
[null,null,null,0,9.9999999999999995E-7,null,{"$f":"+C428*E428*D428","v":0}]
[null,null,null,0,9.9999999999999995E-7,null,0]
[null,"Incidencias"]
[]
[]
[null,null,null,null,null,null,"Puntuación del apartado","3.12",{"$f":"+SUM(G422:G432)","v":0}]
[]
["3.13. Dirección de tesinas de Licenciatura y Proyectos Fin de Carrera"]
["Documento","Mérito","Cantidad","Pertinencia","Ptos/und","Comentarios","Puntos"]
[null,null,"(nº)"]
[null,"Con la máxima calificación (1.5 ptos)"]
[null,null,null,0,1.5,null,{"$f":"+C439*E439*D439","v":0}]
[null,null,null,0,1.5,null,{"$f":"+C440*E440*D440","v":0}]
[null,"Sin la máxima calificación (proporcional a 1.5 ptos) (la puntuación la decidirá la Comisión Asesora)",null,null,"(0 - 1.5)"]
[null,null,null,0,9.9999999999999995E-7,null,{"$f":"+C442*E442*D442","v":0}]
[null,null,null,0,9.9999999999999995E-7,null,0]
[null,"Incidencias"]
[]
[]
[null,null,null,null,null,null,"Puntuación del apartado","3.13",{"$f":"+SUM(G436:G446)","v":0}]
[]
["3.14. Becas de investigación predoctorales"]
["Documento","Mérito","Cantidad","Pertinencia","Ptos/und","Comentarios","Puntos"]
[null,null,"(años)"]
[null,"De la Unión Europea o las Administraciones Públicas Estatal o Autonómica."]
[null,null,null,0,2,null,{"$f":"+C453*E453*D453","v":0}]
[null,null,null,0,2,null,0]
[null,"De otras entidades públicas y privadas"]
[null,null,null,0,1.5,null,{"$f":"+C456*E456*D456","v":0}]
[null,null,null,0,1.5,null,0]
[null,"De proyectos de investigación"]
[null,null,null,0,1,null,{"$f":"+C459*E459*D459","v":0}]
[null,null,null,0,1,null,0]
[null,"Incidencias"]
[]
[]
[null,null,null,null,null,null,"Puntuación del apartado","3.14",{"$f":"+SUM(G450:G463)","v":0}]
[]
["3.15. Becas postdoctorales, contratos de reincorporación y similares"]
["Documento","Mérito","Cantidad","Pertinencia","Ptos/und","Comentarios","Puntos"]
[null,null,"(años)"]
[null,null,null,0,1,null,{"$f":"+C469*E469*D469","v":0}]
[null,null,null,0,1,null,0]
[null,"Incidencias"]
[]
[]
[null,null,null,null,null,null,"Puntuación del apartado","3.15",{"$f":"+SUM(G467:G473)","v":0}]
[]
["3.16. Estrenos, exposiciones, composiciones."]
["Documento","Mérito","Cantidad","Pertinencia","Ptos/und","Comentarios","Puntos"]
[null,"Los puntos especificados en este apartado no son reales, los ha de especificar la Comisión Asesora","(años)",null,"(0 - 1.5)"]
[null,null,null,0,1.5,null,{"$f":"+C479*E479*D479","v":0}]
[null,null,null,0,1.5,null,0]
[null,"Incidencias"]
[]
[]
[null,null,null,null,null,null,"Puntuación del apartado",3.16,{"$f":"+SUM(G477:G483)","v":0}]
[]
["3.17. Premios de investigación"]
["Documento","Mérito","Cantidad","Pertinencia","Ptos/und","Comentarios","Puntos"]
[null,"Los puntos especificados en este apartado no son reales, los ha de especificar la Comisión Asesora","(nº)",null,"(0 - 1.5)"]
[null,null,null,0,1.5,null,{"$f":"+C489*E489*D489","v":0}]
[null,null,null,0,1.5,null,0]
[null,"Incidencias"]
[]
[]
[null,null,null,null,null,null,"Puntuación del apartado","3.17",{"$f":"+SUM(G487:G493)","v":0}]
[]
["3.18. Evaluación de Proyectos I+D."]
["Documento","Mérito","Cantidad","Pertinencia","Ptos/und","Comentarios","Puntos"]
[null,"Los puntos especificados en este apartado no son reales, los ha de especificar la Comisión Asesora","(nº)",null,"(0 - 1.5)"]
[null,null,null,0,1.5,null,{"$f":"+C499*E499*D499","v":0}]
[null,null,null,0,1.5,null,0]
[null,"Incidencias"]
[]
[]
[null,null,null,null,null,null,"Puntuación del apartado",3.18,{"$f":"+SUM(G497:G503)","v":0}]
[]
["3.19. Pertenencia a consejos de redacción de revista"]
["Documento","Mérito","Cantidad","Pertinencia","Ptos/und","Comentarios","Puntos"]
[null,"Los puntos especificados en este apartado no son reales, los ha de especificar la Comisión Asesora","(nº)",null,"(0 - 1.5)"]
[null,null,null,0,1.5,null,{"$f":"+C509*E509*D509","v":0}]
[null,null,null,0,1.5,null,0]
[null,"Incidencias"]
[]
[]
[null,null,null,null,null,null,"Puntuación del apartado","3.19",{"$f":"+SUM(G507:G513)","v":0}]
[]
["3.20. Otros méritos de investigación relevantes (máximo 1 punto)"]
["Documento","Mérito","Cantidad","Pertinencia","Ptos/und","Comentarios","Puntos"]
[null,"Los puntos especificados en este apartado no son reales, los ha de especificar la Comisión Asesora","(nº)"]
[null,null,null,0,9.9999999999999995E-7,null,{"$f":"+C519*E519*D519","v":0}]
[null,null,null,0,9.9999999999999995E-7,null,0]
[null,"Incidencias"]
[]
[]
[null,null,null,null,null,null,"Puntuación del apartado","3.20",{"$f":"IF(SUM(G517:G523)>1,1,SUM(G517:G523))","v":0}]
["III Experiencia investigadora (40 puntos)",null,null,null,null,null,null,"3.00",null,{"$f":"+SUM(I253:I524)","v":0}]
[]
["IV. Experiencia y otros méritos profesionales (5 ptos)","IV. Experiencia y otros méritos profesionales (5 ptos)"]
["4.1. Experiencia profesional con interés para la docencia e investigación"]
["Documento","Mérito","Cantidad","Pertinencia","Ptos/und","Comentarios","Puntos"]
[null,"Los puntos especificados en este apartado no son reales, los ha de especificar la Comisión Asesora","(años)",null,"(0 - 2)"]
[null,null,null,0,2,null,{"$f":"+C531*E531*D531","v":0}]
[null,null,null,0,2,null,0]
[null,"Incidencias"]
[]
[]
[null,null,null,null,null,null,"Puntuación del apartado","4.01",{"$f":"+SUM(G529:G535)","v":0}]
[]
["4.2. Contratos de con aplicación o consultoría"]
["Documento","Mérito","Cantidad","Pertinencia","Ptos/und","Comentarios","Puntos"]
[null,"Los puntos especificados en este apartado no son reales, los ha de especificar la Comisión Asesora","(años)",null,"(0 - 2)"]
[null,null,null,0,2,null,{"$f":"+C541*E541*D541","v":0}]
[null,null,null,0,2,null,0]
[null,"Incidencias"]
[]
[]
[null,null,null,null,null,null,"Puntuación del apartado","4.02",{"$f":"+SUM(G539:G545)","v":0}]
[]
["4.3. Contratos de Investigación"]
["Documento","Mérito","Cantidad","Pertinencia","Ptos/und","Comentarios","Puntos"]
[null,"Los puntos especificados en este apartado no son reales, los ha de especificar la Comisión Asesora","(años)",null,"(0 - 2)"]
[null,null,null,0,2,null,{"$f":"+C551*E551*D551","v":0}]
[null,null,null,0,2,null,0]
[null,"Incidencias"]
[]
[]
[null,null,null,null,null,null,"Puntuación del apartado","4.03",{"$f":"+SUM(G549:G555)","v":0}]
[]
["4.4. Posesión del título de especialista en Ciencias de la Salud"]
["Documento","Mérito","Cantidad","Pertinencia","Ptos/und","Comentarios","Puntos"]
[null,null,"(años)"]
[null,null,null,0,2,null,{"$f":"+C561*E561*D561","v":0}]
[null,null,null,0,2,null,0]
[null,"Incidencias"]
[]
[]
[null,null,null,null,null,null,"Puntuación del apartado","4.04",{"$f":"+SUM(G559:G565)","v":0}]
[]
["4.5. Otros méritos relevantes (máximo 5 puntos)"]
["Documento","Mérito","Cantidad","Pertinencia","Ptos/und","Comentarios","Puntos"]
[null,"Los puntos especificados en este apartado no son reales, los ha de especificar la Comisión Asesora","(nº)"]
[null,null,null,0,9.9999999999999995E-7,null,{"$f":"+C571*E571*D571","v":0}]
[null,null,null,0,9.9999999999999995E-7,null,0]
[null,"Incidencias"]
[]
[]
[null,null,null,null,null,null,"Puntuación del apartado","4.05",{"$f":"IF(SUM(G569:G575)>5,5,SUM(G569:G575))","v":0}]
["IV. Experiencia y otros méritos profesionales (5 ptos)",null,null,null,null,null,null,"4.00",null,{"$f":"+SUM(I526:I576)","v":0}]
[]
["V. Otros méritos (5 ptos)",null,null,null,null,null,null,""]
["5.1. Asistencia a Congresos"]
["Documento","Mérito","Cantidad","Pertinencia","Ptos/und","Comentarios","Puntos"]
[null,null,"(nº)"]
[null,"Internacional (0.1 pto)"]
[null,null,null,0,0.1,null,{"$f":"+C584*E584*D584","v":0}]
[null,null,null,0,0.1,null,{"$f":"+C585*E585*D585","v":0}]
[null,"Nacional (0.05 ptos)"]
[null,null,null,0,0.05,null,{"$f":"+C587*E587*D587","v":0}]
[null,null,null,0,0.05,null,0]
[null,"Incidencias"]
[]
[]
[null,null,null,null,null,null,"Puntuación del apartado","5.01",{"$f":"+SUM(G581:G591)","v":0}]
[]
["5.2. Gestión universitaria"]
["Documento","Mérito","Cantidad","Pertinencia","Ptos/und","Comentarios","Puntos"]
[null,"Los puntos especificados en este apartado no son reales, los ha de especificar la Comisión Asesora","(años)",null,"(0 - 0.4)"]
[null,null,null,0,0.4,null,{"$f":"+C597*E597*D597","v":0}]
[null,null,null,0,0.4,null,0]
[null,"Incidencias"]
[]
[]
[null,null,null,null,null,null,"Puntuación del apartado","5.02",{"$f":"+SUM(G595:G601)","v":0}]
[]
["5.3. Organización de eventos científicos"]
["Documento","Mérito","Cantidad","Pertinencia","Ptos/und","Comentarios","Puntos"]
[null,"Los puntos especificados en este apartado no son reales, los ha de especificar la Comisión Asesora","(nº)",null,"(0 - 1)"]
[null,null,null,0,1,null,{"$f":"+C607*E607*D607","v":0}]
[null,null,null,0,9.9999999999999995E-7,null,0]
[null,"Incidencias"]
[]
[]
[null,null,null,null,null,null,"Puntuación del apartado","5.03",{"$f":"+SUM(G605:G611)","v":0}]
[]
["5.4. Otros méritos relevantes (máximo 5 ptos)"]
["Documento","Mérito","Cantidad","Pertinencia","Ptos/und","Comentarios","Puntos"]
[null,"Los puntos especificados en este apartado no son reales, los ha de especificar la Comisión Asesora","(nº)"]
[null,"Idiomas"]
[null,null,null,0,0.5,null,{"$f":"+C618*E618*D618","v":0}]
[null,null,null,0,0.5,null,{"$f":"+C619*E619*D619","v":0}]
[null,null,null,0,0.5,null,0]
[null,null,null,0,0.5,null,0]
[null,null,null,0,0.5,null,{"$f":"+C622*E622*D622","v":0}]
[null,"Otros"]
[null,null,null,0,9.9999999999999995E-7,null,{"$f":"+C624*E624*D624","v":0}]
[null,null,null,0,9.9999999999999995E-7,null,0]
[null,"Incidencias"]
[]
[]
[null,null,null,null,null,null,"Puntuación del apartado","5.04",{"$f":"IF(SUM(G615:G628)>5,5,SUM(G615:G628))","v":0}]
["V. Otros méritos (5 ptos)",null,null,null,null,null,null,"5.00",null,{"$f":"+SUM(I578:I629)","v":0}]

{"sheet":"Hoja2","index":1,"n_rows":0,"n_cols":0,"rows_kept":0,"cut":false,"hidden":false,"merged":[]}

{"sheet":"Hoja3","index":2,"n_rows":0,"n_cols":0,"rows_kept":0,"cut":false,"hidden":false,"merged":[]}